bitfinex-derivatives/quotes_BNBF0:USTF0_20250603
["timestamp","ask_amount","ask_price","bid_price","bid_amount"]
[1748988219215,1.02941365,658.65,658.08,0.30391441]
[1748988219421,1.02941365,658.64,658.08,0.30391441]
[1748988219617,1.02941365,658.63,658.08,0.30391441]
[1748988219924,1.02941365,658.62,658.08,0.30391441]
[1748988220121,1.50136254,658.96,658.08,0.30391441]
[1748988220416,3.75340636,659.67,658.08,0.30391441]
[1748988220417,1.12507281,658.79,658.08,0.30391441]
[1748988220622,1.02915566,658.78,658.08,0.30391441]
[1748988220822,1.02915566,658.77,658.08,0.30391441]
[1748988221024,1.02915566,658.76,658.08,0.30391441]
[1748988221223,1.12507281,658.79,658.08,0.30391441]
[1748988221224,1.02915566,658.75,658.08,0.30391441]
[1748988221424,1.02915566,658.74,658.08,0.30391441]
[1748988221722,1.12507281,658.8,658.08,0.30391441]
[1748988221723,1.02915566,658.73,658.08,0.30391441]
[1748988221922,1.02915566,658.72,658.08,0.30391441]
[1748988222123,1.02915566,658.71,658.08,0.30391441]
[1748988222323,1.02915566,658.7,658.08,0.30391441]
[1748988222522,1.02915566,658.69,658.08,0.30391441]
[1748988222724,1.02915566,658.68,658.08,0.30391441]
[1748988223021,1.02915566,658.67,658.08,0.78575231]
[1748988223224,1.02915566,658.66,658.08,0.78575231]
[1748988223418,1.02915566,658.65,658.1,0.4818379]
[1748988223623,1.02915566,658.64,658.11,0.30390056]
[1748988223823,3.75340636,659.52,658.11,0.30390056]
[1748988223824,1.02915566,658.63,658.11,0.30390056]
[1748988224025,1.02940229,658.62,658.11,0.30390056]
[1748988224225,1.02940229,658.61,658.11,0.78573846]
[1748988224420,1.02940229,658.6,658.11,0.78573846]
[1748988224624,1.12496676,658.81,658.14,0.4818379]
[1748988224821,1.02948587,658.8,658.15,0.30388209]
[1748988225020,1.02948587,658.79,658.15,0.78571999]
[1748988225225,1.02948587,658.78,658.15,0.78571999]
[1748988225426,1.02948587,658.77,658.15,0.78571999]
[1748988225624,1.02948587,658.76,658.15,0.78571999]
[1748988225824,1.02948587,658.75,658.16,0.4818379]
[1748988226024,1.02948587,658.74,658.18,0.4818379]
[1748988226221,1.02948587,658.73,658.19,0.30386362]
[1748988226420,3.75340636,659.5,658.19,0.30386362]
[1748988226421,1.02948587,658.72,658.19,0.30386362]
[1748988226624,1.02948587,658.71,658.19,0.30386362]
[1748988226819,1.02948587,658.7,658.19,0.30386362]
[1748988227023,1.02948587,658.69,658.19,0.30386362]
[1748988227224,1.02948587,658.68,658.19,0.30386362]
[1748988227423,1.02948587,658.67,658.21,0.4818379]
[1748988227624,1.02948587,658.66,658.22,0.30384977]
[1748988227821,1.02972314,658.65,658.22,0.30384977]
[1748988228020,1.02972314,658.64,658.22,0.30384977]
[1748988228224,1.02972314,658.63,658.22,0.30384977]
[1748988228423,1.02972314,658.62,658.22,0.30384977]
[1748988228627,1.02972314,658.61,658.22,0.30384977]
[1748988228929,1.02972314,658.6,658.22,0.30384977]
[1748988229126,1.02972314,658.59,658.23,0.4818379]
[1748988229323,1.02972314,658.58,658.24,0.30384054]
[1748988229528,1.02972314,658.57,658.25,0.4818379]
[1748988229728,1.02972314,658.56,658.26,0.30383131]
[1748988229922,1.02972314,658.55,658.26,0.30383131]
[1748988230123,1.02972314,658.54,658.26,0.30383131]
[1748988230326,1.12506168,658.73,658.26,0.30383131]
[1748988230526,1.02984922,658.72,658.26,0.30383131]
[1748988230727,1.02984922,658.71,658.28,0.4818379]
[1748988230923,1.02984922,658.7,658.28,0.4818379]
[1748988231123,1.02984922,658.69,658.28,0.4818379]
[1748988231428,1.02984922,658.68,658.26,0.78566921]
[1748988231629,1.03018851,658.67,658.29,0.4818379]
[1748988231824,1.03018851,658.66,658.29,0.4818379]
[1748988232023,1.03018851,658.65,658.29,0.4818379]
[1748988232224,1.03018851,658.64,658.31,0.4818379]
[1748988232527,1.03018851,658.63,658.3,0.78565075]
[1748988232724,1.03018851,658.62,658.31,0.30380823]
[1748988232929,1.03018851,658.61,658.31,0.30380823]
[1748988233128,1.12556913,658.86,658.34,0.4818379]
[1748988233430,1.03040974,658.85,658.35,0.30378977]
[1748988233629,1.03040974,658.84,658.35,0.30378977]
[1748988233929,1.03040974,658.83,658.35,0.30378977]
[1748988234124,1.03040974,658.82,658.35,0.30378977]
[1748988234332,1.03040974,658.81,658.35,0.30378977]
[1748988234530,1.03040974,658.8,658.35,0.30378977]
[1748988234733,1.03040974,658.79,658.35,0.30378977]
[1748988234925,1.03040974,658.78,658.35,0.30378977]
[1748988235129,1.03040974,658.77,658.35,0.30378977]
[1748988235327,1.03040974,658.76,658.35,0.30378977]
[1748988235532,1.03040974,658.75,658.35,0.30378977]
[1748988235730,1.03040974,658.74,658.35,0.30378977]
[1748988235929,1.03040974,658.73,658.35,0.30378977]
[1748988236129,1.12556913,658.94,658.35,0.30378977]
[1748988236130,1.03040974,658.72,658.35,0.30378977]
[1748988236332,1.03040974,658.71,658.35,0.30378977]
[1748988236532,1.03040974,658.7,658.35,0.30378977]
[1748988236831,1.12556913,658.94,658.35,0.30378977]
[1748988236832,1.03040974,658.69,658.35,0.30378977]
[1748988237032,1.03040974,658.68,658.35,0.30378977]
[1748988237229,1.03040974,658.67,658.35,0.30378977]
[1748988237428,1.03040974,658.66,658.35,0.30378977]
[1748988237631,1.03040974,658.65,658.35,0.30378977]
[1748988237831,1.03040974,658.64,658.35,0.30378977]
[1748988238031,1.12556913,658.94,658.35,0.30378977]
[1748988238231,1.03011283,658.93,658.35,0.30378977]
[1748988238433,1.03011283,658.92,658.35,0.30378977]
[1748988238636,1.03011283,658.91,658.35,0.30378977]
[1748988238829,1.12556913,658.85,658.35,0.30378977]
[1748988239035,1.02990444,658.84,658.35,0.30378977]
[1748988239237,1.12573781,658.81,658.35,0.30378977]
[1748988239431,1.02990444,658.8,658.35,0.30378977]
[1748988239735,3.75340636,659.81,658.35,0.30378977]
[1748988239736,1.02990444,658.79,658.35,0.30378977]
[1748988239937,1.02990444,658.78,658.35,0.30378977]
[1748988240137,1.02990444,658.77,658.35,0.30378977]
[1748988240333,1.02990444,658.76,658.35,0.30378977]
[1748988240533,1.02990444,658.75,658.35,0.30378977]
[1748988240733,1.02990444,658.74,658.35,0.30378977]
[1748988240929,1.02990444,658.73,658.35,0.30378977]
[1748988241128,1.02990444,658.72,658.35,0.30378977]
[1748988241337,1.02990444,658.71,658.35,0.30378977]
[1748988241631,1.02967494,658.7,658.35,0.30378977]
[1748988241835,1.02967494,658.69,658.35,0.30378977]
[1748988242030,1.02967494,658.68,658.35,0.30378977]
[1748988242236,1.02967494,658.67,658.35,0.30378977]
[1748988242437,1.02967494,658.66,658.35,0.30378977]
[1748988242631,1.02967494,658.65,658.35,0.30378977]
[1748988242831,1.02967494,658.64,658.35,0.30378977]
[1748988243031,1.02967494,658.63,658.35,0.30378977]
[1748988243232,1.02967494,658.62,658.35,0.30378977]
[1748988243436,1.02967494,658.61,658.35,0.30378977]
[1748988243629,1.02967494,658.6,658.35,0.30378977]
[1748988243833,1.02967494,658.59,658.35,0.30378977]
[1748988244033,1.12576172,658.91,658.35,0.30378977]
[1748988244232,1.02977605,658.9,658.35,0.30378977]
[1748988244436,1.02977605,658.89,658.35,0.30378977]
[1748988244633,1.02977605,658.88,658.35,0.30378977]
[1748988244838,1.02977605,658.87,658.35,0.30378977]
[1748988245038,1.50136254,659.07,658.35,0.30378977]
[1748988245239,1.12590523,658.9,658.35,0.30378977]
[1748988245437,1.02894818,658.89,658.35,0.30378977]
[1748988245637,1.02894818,658.88,658.35,0.30378977]
[1748988245941,1.02894818,658.87,658.35,0.30378977]
[1748988246139,1.02894818,658.86,658.35,0.30378977]
[1748988246340,1.02894818,658.85,658.35,0.30378977]
[1748988246544,1.02894818,658.84,658.35,0.30378977]
[1748988246744,1.50136254,659.08,657.81,0.4818379]
[1748988246944,1.12609611,658.9,657.81,0.4818379]
[1748988247144,1.02912319,658.89,657.81,0.4818379]
[1748988247345,1.02912319,658.88,657.81,0.4818379]
[1748988247646,1.02912319,658.88,657.22,0.26440454]
[1748988247647,1.02912319,658.87,657.8,0.4818379]
[1748988247839,1.02912319,658.87,657.22,0.26440454]
[1748988247840,1.02912319,658.86,657.82,0.4818379]
[1748988248042,1.02912319,658.85,657.82,0.4818379]
[1748988248244,1.02912319,658.84,657.82,0.4818379]
[1748988248448,1.02912319,658.83,657.82,0.4818379]
[1748988248748,1.02912319,658.82,657.83,0.4818379]
[1748988248949,1.02961759,658.81,657.83,0.4818379]
[1748988249148,1.02961759,658.8,657.83,0.4818379]
[1748988249344,1.02961759,658.79,657.83,0.4818379]
[1748988249550,3.75340636,659.96,657.83,0.4818379]
[1748988249551,1.02961759,658.78,657.83,0.4818379]
[1748988249750,1.02961759,658.77,657.83,0.4818379]
[1748988249944,1.02961759,658.76,657.83,0.4818379]
[1748988250146,1.02961759,658.75,657.95,0.4818379]
[1748988250446,1.02961759,658.74,657.94,0.4818379]
[1748988250650,1.02961759,658.73,658.07,0.4818379]
[1748988250851,1.02961759,658.72,658.06,0.4818379]
[1748988251051,1.02961759,658.71,658.1,0.4818379]
[1748988251247,1.02961759,658.7,658.1,0.4818379]
[1748988251445,1.02961759,658.69,658.1,0.4818379]
[1748988251651,1.12663731,658.98,658.09,0.4818379]
[1748988251846,1.03160531,658.97,658.1,0.4818379]
[1748988252046,1.03160531,658.96,658.1,0.4818379]
[1748988252250,1.03160531,658.95,658.1,0.4818379]
[1748988252450,1.03160531,658.94,658.1,0.4818379]
[1748988252647,1.032249,658.93,658.1,0.4818379]
[1748988252851,1.032249,658.92,658.09,0.4818379]
[1748988253050,1.032249,658.91,658.09,0.4818379]
[1748988253249,1.032249,658.9,658.11,0.4818379]
[1748988253553,1.032249,658.89,658.1,0.4818379]
[1748988253754,1.032249,658.88,658.1,0.4818379]
[1748988253950,1.032249,658.87,658.1,0.4818379]
[1748988254155,1.032249,658.86,658.1,0.4818379]
[1748988254454,3.75340636,659.95,657.32,3.76497111]
[1748988254455,1.032249,658.85,658.32,0.4818379]
[1748988254651,1.032249,658.84,658.3,0.4818379]
[1748988254848,1.032249,658.83,658.3,0.4818379]
[1748988255048,1.032249,658.82,658.27,0.4818379]
[1748988255251,1.032249,658.81,658.27,0.4818379]
[1748988255449,1.032249,658.8,658.27,0.4818379]
[1748988255651,1.032249,658.79,658.25,0.4818379]
[1748988255851,1.032249,658.78,658.26,0.4818379]
[1748988256050,1.032249,658.77,658.26,0.4818379]
[1748988256254,1.032249,658.76,658.26,0.4818379]
[1748988256449,1.03319275,658.75,658.25,0.4818379]
[1748988256653,1.03319275,658.74,658.25,0.4818379]
[1748988256854,1.03319275,658.73,658.24,0.4818379]
[1748988257056,1.03306056,658.72,658.13,0.4818379]
[1748988257257,1.0330216,658.71,658.11,0.4818379]
[1748988257453,1.0330216,658.7,658.12,0.4818379]
[1748988257652,1.0330216,658.69,658.12,0.4818379]
[1748988257859,1.0330216,658.68,658.12,0.4818379]
[1748988258150,1.0330216,658.68,657.51,0.4818379]
[1748988258151,1.0330216,658.67,658.08,0.4818379]
[1748988258355,3.75340636,659.77,657.67,0.4818379]
[1748988258356,1.0330216,658.66,658.09,0.4818379]
[1748988258557,1.0330216,658.65,658.08,0.4818379]
[1748988258751,1.0330216,658.65,657.47,0.4818379]
[1748988258752,1.0330216,658.64,658.07,0.4818379]
[1748988258953,1.0330216,658.63,658.07,0.4818379]
[1748988259151,1.12882709,658.88,658.08,0.4818379]
[1748988259353,1.12882709,658.86,657.78,0.4818379]
[1748988259553,1.03276315,658.87,656.69,5.27095956]
[1748988259554,1.12882709,658.82,657.73,0.4818379]
[1748988259751,1.03276315,658.81,657.73,0.4818379]
[1748988259950,1.03276315,658.8,657.78,0.4818379]
[1748988260151,1.03275047,658.79,657.78,0.4818379]
[1748988260360,1.03275047,658.78,657.81,0.4818379]
[1748988260559,1.03275047,658.77,657.81,0.4818379]
[1748988260756,1.03275047,658.76,657.81,0.4818379]
[1748988260953,1.03275047,658.75,657.82,0.4818379]
[1748988261158,1.03275047,658.74,657.81,0.4818379]
[1748988261358,1.03275047,658.73,657.81,0.4818379]
[1748988261554,1.03275047,658.72,657.81,0.4818379]
[1748988261755,1.03275047,658.71,657.81,0.4818379]
[1748988261960,1.03275047,658.7,657.81,0.4818379]
[1748988262155,1.03275047,658.69,657.81,0.4818379]
[1748988262361,1.03275047,658.68,657.84,0.4818379]
[1748988262557,1.03275047,658.67,657.84,0.4818379]
[1748988262755,1.03275047,658.66,657.84,0.4818379]
[1748988262960,1.12836469,658.9,657.84,0.4818379]
[1748988262961,1.03275047,658.65,657.84,0.4818379]
[1748988263260,1.03275047,658.64,657.84,0.4818379]
[1748988263458,1.03275047,658.63,657.85,0.4818379]
[1748988263656,1.03275047,658.62,657.82,0.4818379]
[1748988263858,1.03275047,658.61,657.82,0.4818379]
[1748988264058,1.0329747,658.6,657.82,0.4818379]
[1748988264361,1.0329747,658.59,657.85,0.4818379]
[1748988264561,1.0329747,658.58,657.85,0.4818379]
[1748988264762,1.0329747,658.57,657.86,0.4818379]
[1748988264954,1.12854851,658.87,657.86,0.4818379]
[1748988265157,1.03287644,658.86,657.86,0.4818379]
[1748988265358,1.03287644,658.85,657.86,0.4818379]
[1748988265558,1.03287644,658.84,657.88,0.4818379]
[1748988265758,1.03287644,658.83,657.86,0.4818379]
[1748988265957,1.03287644,658.82,657.86,0.4818379]
[1748988266159,1.03287644,658.81,657.86,0.4818379]
[1748988266360,1.03287644,658.8,657.86,0.4818379]
[1748988266557,1.03287644,658.79,657.86,0.4818379]
[1748988266862,1.03287644,658.78,657.86,0.4818379]
[1748988267062,1.03287644,658.77,657.86,0.4818379]
[1748988267365,1.03287644,658.76,657.86,0.4818379]
[1748988267557,1.03287644,658.75,657.87,0.4818379]
[1748988267762,1.50136254,659.04,657.88,0.4818379]
[1748988267964,1.12913146,658.85,657.88,0.4818379]
[1748988268262,1.03327336,658.84,657.89,0.4818379]
[1748988268463,1.03327336,658.83,657.9,0.4818379]
[1748988268763,1.03327336,658.82,657.9,0.4818379]
[1748988268965,1.03327336,658.81,657.91,0.4818379]
[1748988269257,1.03327336,658.8,658.15,0.4818379]
[1748988269463,1.03327336,658.79,658.15,0.4818379]
[1748988269762,1.03327336,658.78,658.16,0.4818379]
[1748988269963,1.03327336,658.77,658.16,0.4818379]
[1748988270162,1.03327336,658.76,658.23,0.4818379]
[1748988270360,1.12913146,658.8,658.23,0.4818379]
[1748988270361,1.03327336,658.75,658.23,0.4818379]
[1748988270561,1.03327336,658.74,658.23,0.4818379]
[1748988270761,1.03327336,658.73,658.23,0.4818379]
[1748988270958,1.03327336,658.72,658.2,0.4818379]
[1748988271162,1.03327336,658.71,658.23,0.4818379]
[1748988271357,1.03327336,658.7,658.23,0.4818379]
[1748988271563,1.12913146,658.79,658.22,0.4818379]
[1748988271762,1.0339463,658.78,658.23,0.4818379]
[1748988271961,1.0339463,658.77,658.23,0.4818379]
[1748988272158,1.0339463,658.76,658.23,0.4818379]
[1748988272363,1.03368858,658.75,658.23,0.4818379]
[1748988272762,1.03368858,658.74,657.51,3.76497111]
[1748988272959,1.03368858,658.74,657.53,0.30416863]
[1748988273158,1.03368858,658.73,657.53,0.30416863]
[1748988273365,1.03368858,658.73,657.92,0.48201079]
[1748988273557,1.03368858,658.72,658.26,0.48201079]
[1748988273766,1.03368858,658.72,658.27,0.30382669]
[1748988274165,1.50136254,658.9,658.27,0.30382669]
[1748988274666,3.75340636,659.47,658.27,0.30382669]
[1748988278068,2.7874928,668.63,658.31,0.30380823]
[1748988278265,2.7874928,668.63,658.31,0.78581902]
[1748988280272,2.7874928,668.63,658.36,0.48201079]
[1748988280469,2.7874928,668.63,658.37,0.30378054]
[1748988282466,2.7874928,670.74,658.37,0.30378054]
[1748988285468,0.26410355,660.45,658.37,0.30378054]
[1748988285671,1.12950729,659.03,658.37,0.30378054]
[1748988285868,1.03405376,659.02,658.37,0.30378054]
[1748988286167,1.03405376,659.01,658.37,0.30378054]
[1748988286373,1.03405376,659.0,658.37,0.30378054]
[1748988286572,1.03405376,658.99,658.37,0.30378054]
[1748988286773,1.03405376,658.98,658.37,0.30378054]
[1748988287072,1.12950729,659.08,658.37,0.30378054]
[1748988287073,1.03405376,658.97,658.37,0.30378054]
[1748988287266,1.03405376,658.96,658.37,0.30378054]
[1748988287469,1.03405376,658.95,658.37,0.30378054]
[1748988287667,1.03405376,658.94,658.37,0.30378054]
[1748988287871,1.03405376,658.93,658.37,0.30378054]
[1748988288074,1.03367674,658.92,658.37,0.30378054]
[1748988288271,1.1290892,659.09,658.37,0.30378054]
[1748988288272,1.03367674,658.91,658.37,0.30378054]
[1748988288472,1.03367674,658.9,658.37,0.30378054]
[1748988288667,1.1290892,659.09,658.37,0.30378054]
[1748988288668,1.03367674,658.89,658.37,0.30378054]
[1748988288869,1.03367674,658.88,658.37,0.30378054]
[1748988289068,1.03367674,658.87,658.37,0.30378054]
[1748988289271,1.03367674,658.86,658.37,0.30378054]
[1748988289470,1.03367674,658.85,658.37,0.30378054]
[1748988289671,1.1290892,659.13,658.37,0.30378054]
[1748988289672,1.03367674,658.84,658.37,0.30378054]
[1748988289973,1.1290892,659.14,658.37,0.30378054]
[1748988290169,1.03400431,659.13,658.37,0.30378054]
[1748988290371,1.03400431,659.12,658.37,0.30378054]
[1748988290575,3.76502431,660.16,658.37,0.30378054]
[1748988290576,1.03400431,659.11,658.37,0.30378054]
[1748988290769,1.03400431,659.1,658.37,0.30378054]
[1748988290974,1.03400431,659.09,658.37,0.30378054]
[1748988291176,1.03400431,659.08,658.37,0.30378054]
[1748988291377,1.03400431,659.07,658.37,0.30378054]
[1748988291575,1.03400431,659.06,658.37,0.30378054]
[1748988291780,1.03400431,659.05,658.37,0.30378054]
[1748988291976,1.03351778,659.04,658.37,0.30378054]
[1748988292177,1.03351778,659.03,658.37,0.30378054]
[1748988292377,1.03351778,659.02,658.37,0.30378054]
[1748988292683,1.03351778,659.01,658.37,0.30378054]
[1748988292881,1.03351778,659.0,658.37,0.30378054]
[1748988293082,1.03351778,658.99,658.37,0.30378054]
[1748988293285,1.03351778,658.98,658.37,0.30378054]
[1748988293480,1.03351778,658.97,658.37,0.30378054]
[1748988293684,1.03351778,658.96,658.37,0.30378054]
[1748988293884,1.12866963,659.19,658.37,0.30378054]
[1748988293885,1.03351778,658.95,658.37,0.30378054]
[1748988294079,1.03351778,658.94,658.37,0.30378054]
[1748988294281,1.03351778,658.93,658.37,0.30378054]
[1748988294482,1.03351778,658.92,658.37,0.30378054]
[1748988294782,1.12866963,659.19,658.37,0.30378054]
[1748988294783,1.03351778,658.91,658.37,0.30378054]
[1748988294981,1.03351778,658.9,658.37,0.30378054]
[1748988295179,1.03351778,658.89,658.37,0.30378054]
[1748988295383,1.12866963,659.19,658.37,0.30378054]
[1748988295685,1.03286354,659.18,658.37,0.30378054]
[1748988295884,1.03286354,659.17,658.37,0.30378054]
[1748988296084,1.03286354,659.16,658.37,0.30378054]
[1748988296387,1.03286354,659.15,658.37,0.30378054]
[1748988296584,1.03286354,659.14,658.37,0.30378054]
[1748988296786,1.03286354,659.13,658.37,0.30378054]
[1748988296980,1.03286354,659.12,658.37,0.30378054]
[1748988297182,1.03286354,659.11,658.37,0.30378054]
[1748988297382,1.03286354,659.1,658.37,0.30378054]
[1748988297585,1.03286354,659.09,658.37,0.30378054]
[1748988297782,1.03286354,659.08,658.37,0.30378054]
[1748988297986,1.03286354,659.07,658.37,0.30378054]
[1748988298281,1.03286354,659.06,658.37,0.30378054]
[1748988298480,1.03286354,659.05,658.37,0.30378054]
[1748988298684,1.03286354,659.04,658.37,0.30378054]
[1748988298882,1.03286354,659.03,658.37,0.30378054]
[1748988299086,1.03286354,659.02,658.4,0.48201079]
[1748988299287,1.03286354,659.01,658.41,0.30376209]
[1748988299485,1.03286354,659.0,658.41,0.30376209]
[1748988299686,1.03253226,658.99,658.41,0.30376209]
[1748988299888,1.03253226,658.98,658.41,0.30376209]
[1748988300089,1.03253226,658.97,658.41,0.30376209]
[1748988300289,1.03253226,658.96,658.45,0.48201079]
[1748988300487,1.03253226,658.95,658.46,0.30373902]
[1748988300690,1.1274341,659.15,658.46,0.30373902]
[1748988300890,1.1274341,659.13,658.46,0.30373902]
[1748988301090,1.03217913,659.12,658.46,0.30373902]
[1748988301287,1.03217913,659.11,658.46,0.30373902]
[1748988301491,1.1274341,659.13,658.46,0.30373902]
[1748988301492,1.03217913,659.1,658.46,0.30373902]
[1748988301794,1.1274341,659.13,658.46,0.30373902]
[1748988301795,1.03217913,659.09,658.46,0.30373902]
[1748988301987,1.03217913,659.08,658.46,0.30373902]
[1748988302187,1.03209323,659.07,658.46,0.30373902]
[1748988302388,1.03209323,659.06,658.46,0.30373902]
[1748988302586,1.03209323,659.05,658.46,0.30373902]
[1748988302788,1.03209323,659.04,658.46,0.30373902]
[1748988302992,1.03209323,659.03,658.46,0.30373902]
[1748988303195,1.03209323,659.02,658.46,0.30373902]
[1748988303397,1.03209323,659.01,658.46,0.30373902]
[1748988303589,1.03209323,659.0,658.46,0.78574981]
[1748988303793,1.03209323,658.99,658.47,0.48201079]
[1748988303989,1.03209323,658.98,658.48,0.3037298]
[1748988304190,1.03209323,658.97,658.48,0.3037298]
[1748988304395,1.03209323,658.96,658.48,0.3037298]
[1748988304691,1.12734558,659.15,658.48,0.3037298]
[1748988304692,1.03209323,658.95,658.48,0.3037298]
[1748988304897,1.03209323,658.94,658.48,0.3037298]
[1748988305097,1.03209323,658.93,658.48,0.3037298]
[1748988305298,1.03209323,658.92,658.48,0.3037298]
[1748988305499,1.12734558,659.17,658.48,0.3037298]
[1748988305695,1.03261911,659.16,658.48,0.3037298]
[1748988305900,1.03265242,659.15,658.48,0.3037298]
[1748988306092,1.03265242,659.14,658.48,0.3037298]
[1748988306299,1.12772487,659.17,658.48,0.3037298]
[1748988306300,1.03265242,659.13,658.48,0.3037298]
[1748988306498,1.03265242,659.12,658.48,0.3037298]
[1748988306695,1.12772487,659.17,658.48,0.3037298]
[1748988306696,1.03265242,659.11,658.48,0.3037298]
[1748988306895,1.03265242,659.1,658.48,0.3037298]
[1748988307195,1.03265242,659.09,658.48,0.3037298]
[1748988307395,1.03265242,659.08,658.48,0.3037298]
[1748988307599,1.03265242,659.07,658.48,0.3037298]
[1748988307994,1.03265242,659.06,658.48,0.3037298]
[1748988308196,1.03265242,659.05,658.48,0.3037298]
[1748988308395,1.03265242,659.04,658.48,0.3037298]
[1748988308700,1.03265242,659.03,658.48,0.3037298]
[1748988308900,1.03265242,659.02,658.48,0.3037298]
[1748988309100,1.12772487,659.2,658.48,0.3037298]
[1748988309101,1.03265242,659.01,658.48,0.3037298]
[1748988309395,1.03265242,659.0,658.48,0.3037298]
[1748988309601,1.03265242,658.99,658.48,0.3037298]
[1748988309800,1.03289202,658.98,658.48,0.3037298]
[1748988309997,1.03289202,658.97,658.48,0.3037298]
[1748988310196,1.03289202,658.96,658.48,0.3037298]
[1748988310396,1.1283139,659.24,658.48,0.3037298]
[1748988310598,1.03305533,659.23,658.48,0.3037298]
[1748988310797,1.03305533,659.22,658.48,0.3037298]
[1748988311000,1.03305533,659.21,658.48,0.3037298]
[1748988311195,1.03305533,659.2,658.48,0.3037298]
[1748988311396,1.03305533,659.19,658.48,0.3037298]
[1748988311599,1.03305533,659.18,658.48,0.3037298]
[1748988311800,1.03305533,659.17,658.48,0.3037298]
[1748988311995,1.03305533,659.16,658.48,0.3037298]
[1748988312196,1.03305533,659.15,658.48,0.3037298]
[1748988312403,1.03305533,659.14,658.48,0.3037298]
[1748988312603,1.03305533,659.13,658.48,0.3037298]
[1748988312796,1.03305533,659.12,658.48,0.3037298]
[1748988312999,1.03305533,659.11,658.48,0.3037298]
[1748988313200,1.03305533,659.1,658.48,0.3037298]
[1748988313402,1.03305533,659.09,658.48,0.3037298]
[1748988313596,1.1283139,659.25,658.48,0.3037298]
[1748988313597,1.03305533,659.08,658.48,0.3037298]
[1748988313800,1.03305533,659.07,658.48,0.3037298]
[1748988314102,1.03305533,659.06,658.52,0.48201079]
[1748988314298,1.03305533,659.05,658.53,0.78571753]
[1748988314500,1.03305533,659.04,658.54,0.78571291]
[1748988314702,1.03305533,659.03,658.56,0.48201079]
[1748988315002,1.03305533,659.02,658.66,0.48201079]
[1748988315198,1.03305533,659.01,658.67,0.30364218]
[1748988315400,1.03305533,659.0,658.67,0.30364218]
[1748988315599,1.1283139,659.21,658.67,0.78565297]
[1748988315897,1.03294037,659.2,658.67,0.78565297]
[1748988316098,1.03294037,659.19,658.67,0.78565297]
[1748988316297,1.03294037,659.18,658.67,0.78565297]
[1748988316502,1.03294037,659.17,658.67,0.78565297]
[1748988316702,1.03294037,659.16,658.68,0.48201079]
[1748988316903,1.03294037,659.15,658.69,0.78564375]
[1748988317104,1.03294037,659.14,658.7,0.78563914]
[1748988317305,1.03294037,659.13,658.71,0.30362374]
[1748988317499,1.03294037,659.12,658.71,0.30362374]
[1748988317699,1.03294037,659.11,658.74,0.48201079]
[1748988317897,1.03294037,659.1,658.75,0.30360531]
[1748988318106,1.03294037,659.09,658.75,0.30360531]
[1748988318303,1.03294037,659.08,658.75,0.30360531]
[1748988318504,1.03294037,659.07,658.75,0.30360531]
[1748988318800,1.1283139,659.28,658.75,0.30360531]
[1748988319005,1.03282969,659.27,658.75,0.7856161]
[1748988319205,1.03282969,659.26,658.75,0.30360531]
[1748988319405,1.03282969,659.25,658.75,0.30360531]
[1748988319605,1.03282969,659.24,658.75,0.30360531]
[1748988319800,1.03282969,659.23,658.75,0.30360531]
[1748988320104,1.03282969,659.22,658.75,0.30360531]
[1748988320305,1.03282969,659.21,658.75,0.30360531]
[1748988320502,1.03282969,659.2,658.75,0.30360531]
[1748988320706,1.03282969,659.19,658.75,0.30360531]
[1748988320906,1.03282969,659.18,658.75,0.30360531]
[1748988321206,1.50600972,659.55,658.75,0.30360531]
[1748988321507,1.12766394,659.41,658.75,0.30360531]
[1748988321702,1.03018782,659.4,658.75,0.30360531]
[1748988321904,1.03018782,659.39,658.75,0.30360531]
[1748988322101,1.03018782,659.38,658.75,0.30360531]
[1748988322300,1.03018782,659.37,658.75,0.30360531]
[1748988322504,1.03018782,659.36,658.75,0.30360531]
[1748988322705,1.03018782,659.35,658.75,0.30360531]
[1748988322905,1.03018782,659.34,658.75,0.30360531]
[1748988323106,1.03018782,659.33,658.75,0.30360531]
[1748988323303,1.03018782,659.32,658.75,0.30360531]
[1748988323508,1.03018782,659.31,658.75,0.30360531]
[1748988323705,1.03018782,659.3,658.75,0.30360531]
[1748988323909,1.03018782,659.29,658.75,0.30360531]
[1748988324107,1.03018782,659.28,658.75,0.30360531]
[1748988324305,1.03018782,659.27,658.75,0.30360531]
[1748988324612,1.03018782,659.26,658.75,0.30360531]
[1748988324810,1.03018782,659.25,658.75,0.30360531]
[1748988325010,1.03064214,659.24,658.75,0.30360531]
[1748988325207,1.03064214,659.23,658.75,0.30360531]
[1748988325406,1.12737088,659.41,658.75,0.30360531]
[1748988325407,1.03064214,659.22,658.75,0.30360531]
[1748988325612,1.03064214,659.21,658.75,0.30360531]
[1748988325812,1.03064214,659.2,658.75,0.30360531]
[1748988326113,1.03064214,659.19,658.75,0.30360531]
[1748988326312,1.03064214,659.18,658.75,0.30360531]
[1748988326512,1.12737088,659.45,658.75,0.30360531]
[1748988326712,1.50600972,659.61,658.75,0.30360531]
[1748988326713,1.03094882,659.44,658.75,0.30360531]
[1748988326913,1.03094882,659.43,658.75,0.30360531]
[1748988327113,1.03094882,659.42,658.75,0.30360531]
[1748988327310,1.03094882,659.41,658.75,0.30360531]
[1748988327614,1.03094882,659.4,658.75,0.30360531]
[1748988327914,1.03094882,659.39,658.75,0.30360531]